[Event "Late-Titled-Tuesday-Blitz-February-13-2024"]
[Site "Chess.com"]
[Date "2024.02.13"]
[Round "8"]
[White "HansOnTwitch"]
[Black "GMBenjaminBok"]
[Result "1/2-1/2"]
[WhiteElo "3152"]
[BlackElo "2994"]
[TimeControl "180+1"]
[EndTime "15:28:04 PST"]
[Termination "Game drawn by repetition"]

1. e4 {[%clk 0:03:00.2]} 1... e5 {[%clk 0:02:59.8]} 2. Nf3 {[%clk 0:02:59.3]}
2... Nc6 {[%clk 0:03:00.4]} 3. Bc4 {[%clk 0:02:59.1]} 3... Bc5 {[%clk 0:03:01]}
4. d3 {[%clk 0:02:59.4]} 4... Nf6 {[%clk 0:03:01.3]} 5. O-O {[%clk 0:02:59.2]}
5... d6 {[%clk 0:03:01.7]} 6. c3 {[%clk 0:02:58.8]} 6... a5 {[%clk 0:03:02]} 7.
Re1 {[%clk 0:02:59]} 7... O-O {[%clk 0:03:01.4]} 8. h3 {[%clk 0:02:57.3]} 8...
Be6 {[%clk 0:03:00.1]} 9. Bb5 {[%clk 0:02:51.9]} 9... Ba7 {[%clk 0:02:59.8]} 10.
a4 {[%clk 0:02:47.9]} 10... Ne7 {[%clk 0:02:58.7]} 11. d4 {[%clk 0:02:47.9]}
11... Ng6 {[%clk 0:02:56.6]} 12. Nbd2 {[%clk 0:02:45]} 12... c6 {[%clk
0:02:55.5]} 13. Bd3 {[%clk 0:02:39.3]} 13... Nh5 {[%clk 0:02:41.1]} 14. Nf1
{[%clk 0:02:38.8]} 14... Nhf4 {[%clk 0:02:41.1]} 15. Bc2 {[%clk 0:02:39.2]}
15... exd4 {[%clk 0:02:24.2]} 16. cxd4 {[%clk 0:02:35.9]} 16... d5 {[%clk
0:02:21.9]} 17. e5 {[%clk 0:02:05.2]} 17... f6 {[%clk 0:02:20.7]} 18. Bxf4
{[%clk 0:01:31.8]} 18... Nxf4 {[%clk 0:02:19.3]} 19. Ng3 {[%clk 0:01:32.2]}
19... fxe5 {[%clk 0:02:16]} 20. Rxe5 {[%clk 0:01:31.3]} 20... Qf6 {[%clk
0:01:50.9]} 21. Ng5 {[%clk 0:01:01.6]} 21... g6 {[%clk 0:01:32.5]} 22. Ra3
{[%clk 0:00:34.3]} 22... Bd7 {[%clk 0:01:10]} 23. Rf3 {[%clk 0:00:23.5]} 23...
Rae8 {[%clk 0:00:31.5]} 24. Nxh7 {[%clk 0:00:18.6]} 24... Kxh7 {[%clk 0:00:31]}
25. Nh5 {[%clk 0:00:19.2]} 25... Qh4 {[%clk 0:00:16.1]} 26. Nxf4 {[%clk
0:00:19.5]} 26... Rxf4 {[%clk 0:00:10.6]} 27. Rxf4 {[%clk 0:00:19.9]} 27... Qxf4
{[%clk 0:00:06.5]} 28. Qh5+ {[%clk 0:00:20.4]} 28... Kg7 {[%clk 0:00:06.7]} 29.
Qxg6+ {[%clk 0:00:17.4]} 29... Kf8 {[%clk 0:00:07.1]} 30. Bf5 {[%clk 0:00:16.4]}
30... Qc1+ {[%clk 0:00:03.8]} 31. Kh2 {[%clk 0:00:15.2]} 31... Qf4+ {[%clk
0:00:04.5]} 32. Kg1 {[%clk 0:00:15]} 32... Qc1+ {[%clk 0:00:04.2]} 33. Kh2
{[%clk 0:00:14]} 33... Qf4+ {[%clk 0:00:04.8]} 34. Kg1 {[%clk 0:00:14.4]}
1/2-1/2

[Event "Late-Titled-Tuesday-Blitz-February-13-2024"]
[Site "Chess.com"]
[Date "2024.02.13"]
[Round "8"]
[White "DanylaBagrov"]
[Black "Bugcrusher"]
[Result "1-0"]
[WhiteElo "2563"]
[BlackElo "2466"]
[TimeControl "180+1"]
[EndTime "15:28:11 PST"]
[Termination "DanylaBagrov won by resignation"]

1. f4 {[%clk 0:02:57]} 1... f5 {[%clk 0:02:57.6]} 2. Nf3 {[%clk 0:02:54.5]} 2...
Nf6 {[%clk 0:02:57.4]} 3. d3 {[%clk 0:02:53.5]} 3... g6 {[%clk 0:02:56.8]} 4. g3
{[%clk 0:02:53.8]} 4... Bg7 {[%clk 0:02:56.5]} 5. Bg2 {[%clk 0:02:53.1]} 5...
O-O {[%clk 0:02:56.4]} 6. O-O {[%clk 0:02:53]} 6... d6 {[%clk 0:02:56.6]} 7. Nc3
{[%clk 0:02:44.8]} 7... Nc6 {[%clk 0:02:53.4]} 8. e4 {[%clk 0:02:33.6]} 8... e5
{[%clk 0:02:52.6]} 9. fxe5 {[%clk 0:02:27.7]} 9... dxe5 {[%clk 0:02:49.9]} 10.
exf5 {[%clk 0:02:12.6]} 10... gxf5 {[%clk 0:02:49.3]} 11. Qe2 {[%clk 0:02:08.8]}
11... e4 {[%clk 0:02:37.8]} 12. dxe4 {[%clk 0:02:01.7]} 12... fxe4 {[%clk
0:02:37.7]} 13. Nxe4 {[%clk 0:01:59]} 13... Bf5 {[%clk 0:02:15.5]} 14. Qc4+
{[%clk 0:01:51.8]} 14... Kh8 {[%clk 0:02:14.9]} 15. Neg5 {[%clk 0:01:50.4]}
15... Qd7 {[%clk 0:01:39.2]} 16. Bf4 {[%clk 0:01:41]} 16... Rad8 {[%clk
0:01:35.6]} 17. h3 {[%clk 0:00:50.1]} 17... h6 {[%clk 0:01:28.3]} 18. g4 {[%clk
0:00:47.2]} 18... hxg5 {[%clk 0:01:26.1]} 19. Nxg5 {[%clk 0:00:48.1]} 19... Bg6
{[%clk 0:01:02.8]} 20. Ne6 {[%clk 0:00:44.2]} 20... Rde8 {[%clk 0:00:51.5]} 21.
Nxf8 {[%clk 0:00:41.2]} 21... Rxf8 {[%clk 0:00:51.8]} 22. Rad1 {[%clk
0:00:39.4]} 22... Qe7 {[%clk 0:00:44.5]} 23. Bxc6 {[%clk 0:00:34.7]} 23... bxc6
{[%clk 0:00:43.9]} 24. Rfe1 {[%clk 0:00:35.3]} 24... Ne4 {[%clk 0:00:41.8]} 25.
Bh2 {[%clk 0:00:24.9]} 25... Qh4 {[%clk 0:00:34.3]} 26. Rf1 {[%clk 0:00:15.8]}
26... Rf2 {[%clk 0:00:25.6]} 27. Qb3 {[%clk 0:00:11.2]} 27... Rxf1+ {[%clk
0:00:23]} 28. Rxf1 {[%clk 0:00:10.3]} 28... Bd4+ {[%clk 0:00:22.7]} 29. Kg2
{[%clk 0:00:08.2]} 29... Nc5 {[%clk 0:00:15.9]} 30. Rf8+ {[%clk 0:00:08.6]}
30... Kg7 {[%clk 0:00:14.8]} 31. Qg8+ {[%clk 0:00:07.4]} 31... Kh6 {[%clk
0:00:14.8]} 32. Bf4+ {[%clk 0:00:07.2]} 1-0

[Event "Late-Titled-Tuesday-Blitz-February-13-2024"]
[Site "Chess.com"]
[Date "2024.02.13"]
[Round "8"]
[White "GoValya"]
[Black "Chempiblinka"]
[Result "1-0"]
[WhiteElo "2251"]
[BlackElo "2337"]
[TimeControl "180+1"]
[EndTime "15:28:12 PST"]
[Termination "GoValya won by resignation"]

1. d4 {[%clk 0:03:00.9]} 1... Nf6 {[%clk 0:02:58.3]} 2. Nf3 {[%clk 0:02:57.7]}
2... g6 {[%clk 0:02:58.7]} 3. g3 {[%clk 0:02:57.9]} 3... Bg7 {[%clk 0:02:59]} 4.
Bg2 {[%clk 0:02:58.5]} 4... d6 {[%clk 0:02:57.3]} 5. O-O {[%clk 0:02:58.6]} 5...
O-O {[%clk 0:02:57.9]} 6. d5 {[%clk 0:02:58.6]} 6... c6 {[%clk 0:02:46.1]} 7. c4
{[%clk 0:02:58.2]} 7... e6 {[%clk 0:02:38.8]} 8. dxc6 {[%clk 0:02:49]} 8... bxc6
{[%clk 0:02:33.8]} 9. Nc3 {[%clk 0:02:47.2]} 9... d5 {[%clk 0:02:32.7]} 10. cxd5
{[%clk 0:02:47.3]} 10... cxd5 {[%clk 0:02:30.8]} 11. Bf4 {[%clk 0:02:46.3]}
11... Nc6 {[%clk 0:02:22.4]} 12. Rc1 {[%clk 0:02:45]} 12... Bd7 {[%clk
0:01:56.2]} 13. a3 {[%clk 0:02:30]} 13... Na5 {[%clk 0:01:46.8]} 14. Ne5 {[%clk
0:02:21]} 14... Rc8 {[%clk 0:01:38.4]} 15. e4 {[%clk 0:01:58.8]} 15... dxe4
{[%clk 0:01:24.4]} 16. Nxe4 {[%clk 0:01:33.1]} 16... Rxc1 {[%clk 0:01:01.3]} 17.
Qxc1 {[%clk 0:01:03.4]} 17... Bb5 {[%clk 0:00:47]} 18. Rd1 {[%clk 0:00:59]}
18... Qb6 {[%clk 0:00:34.6]} 19. Rd6 {[%clk 0:00:40.2]} 19... Qb8 {[%clk
0:00:22.9]} 20. Qd1 {[%clk 0:00:29.2]} 20... Nxe4 {[%clk 0:00:18.8]} 21. Bxe4
{[%clk 0:00:29.3]} 21... Qc8 {[%clk 0:00:14.7]} 22. b4 {[%clk 0:00:22.5]} 22...
Nc4 {[%clk 0:00:14.8]} 23. Nxc4 {[%clk 0:00:22.6]} 23... Qxc4 {[%clk 0:00:13.2]}
24. Bd3 {[%clk 0:00:19.3]} 24... Ba4 {[%clk 0:00:04.6]} 25. Bxc4 {[%clk
0:00:18.4]} 25... Bxd1 {[%clk 0:00:04.5]} 26. Rxd1 {[%clk 0:00:19.3]} 26... Rc8
{[%clk 0:00:04.3]} 27. Ba6 {[%clk 0:00:18.8]} 27... Re8 {[%clk 0:00:03.6]} 28.
Bc7 {[%clk 0:00:17.4]} 28... Bb2 {[%clk 0:00:03.6]} 29. a4 {[%clk 0:00:15.9]}
29... Ba3 {[%clk 0:00:03]} 30. Ba5 {[%clk 0:00:14.3]} 30... e5 {[%clk
0:00:02.9]} 31. Kg2 {[%clk 0:00:13.9]} 31... e4 {[%clk 0:00:01.7]} 32. Bb5
{[%clk 0:00:14.2]} 32... f5 {[%clk 0:00:01.8]} 33. Bxe8 {[%clk 0:00:13.3]} 1-0

[Event "Late-Titled-Tuesday-Blitz-February-13-2024"]
[Site "Chess.com"]
[Date "2024.02.13"]
[Round "8"]
[White "Hirna2005"]
[Black "JaackCamel"]
[Result "1-0"]
[WhiteElo "2304"]
[BlackElo "2202"]
[TimeControl "180+1"]
[EndTime "15:28:12 PST"]
[Termination "Hirna2005 won by resignation"]

1. e4 {[%clk 0:03:00.9]} 1... e6 {[%clk 0:02:59.6]} 2. d4 {[%clk 0:03:00.6]}
2... d5 {[%clk 0:02:59.6]} 3. e5 {[%clk 0:03:01.3]} 3... c5 {[%clk 0:02:59.1]}
4. c3 {[%clk 0:03:01.9]} 4... Nc6 {[%clk 0:02:58.8]} 5. Be3 {[%clk 0:03:02.1]}
5... b6 {[%clk 0:02:41.6]} 6. Nf3 {[%clk 0:02:56.5]} 6... Be7 {[%clk 0:02:32.8]}
7. Bd3 {[%clk 0:02:51]} 7... a5 {[%clk 0:02:28.8]} 8. O-O {[%clk 0:02:48.5]}
8... Ba6 {[%clk 0:02:28]} 9. Bxa6 {[%clk 0:02:45.4]} 9... Rxa6 {[%clk
0:02:27.8]} 10. Qa4 {[%clk 0:02:45.5]} 10... Qd7 {[%clk 0:02:23.4]} 11. Qc2
{[%clk 0:02:40.9]} 11... Ra8 {[%clk 0:02:17.2]} 12. a4 {[%clk 0:02:39.1]} 12...
h5 {[%clk 0:02:11.6]} 13. Na3 {[%clk 0:02:38.2]} 13... Nh6 {[%clk 0:02:08.2]}
14. Nb5 {[%clk 0:02:35]} 14... Nf5 {[%clk 0:02:07.2]} 15. h3 {[%clk 0:02:31.7]}
15... O-O {[%clk 0:02:00.9]} 16. g4 {[%clk 0:02:27.5]} 16... Nh4 {[%clk
0:01:44.3]} 17. Nxh4 {[%clk 0:02:25.7]} 17... Bxh4 {[%clk 0:01:44]} 18. f4
{[%clk 0:02:18.9]} 18... cxd4 {[%clk 0:01:41.5]} 19. cxd4 {[%clk 0:02:17.2]}
19... Nb4 {[%clk 0:01:34.1]} 20. Qe2 {[%clk 0:02:14.4]} 20... Be7 {[%clk
0:01:27.3]} 21. gxh5 {[%clk 0:02:05]} 21... Rac8 {[%clk 0:01:27]} 22. Rac1
{[%clk 0:02:04.6]} 22... Rc4 {[%clk 0:01:15.1]} 23. Rxc4 {[%clk 0:01:38.4]}
23... dxc4 {[%clk 0:01:14.7]} 24. Rc1 {[%clk 0:01:34.3]} 24... Nd5 {[%clk
0:01:02.9]} 25. Rxc4 {[%clk 0:01:29.1]} 25... Bb4 {[%clk 0:00:59.9]} 26. Bf2
{[%clk 0:01:15.5]} 26... Nxf4 {[%clk 0:00:53.6]} 27. Qf3 {[%clk 0:01:13.2]}
27... Qd5 {[%clk 0:00:42.7]} 28. Qxd5 {[%clk 0:01:08.7]} 28... Nxd5 {[%clk
0:00:38.9]} 29. Kg2 {[%clk 0:01:05]} 29... Be1 {[%clk 0:00:33.9]} 30. Nd6 {[%clk
0:00:56.6]} 30... Bxf2 {[%clk 0:00:29.2]} 31. Kxf2 {[%clk 0:00:56.5]} 31... Rb8
{[%clk 0:00:24.5]} 32. Kf3 {[%clk 0:00:53.8]} 32... Nb4 {[%clk 0:00:20.1]} 33.
Rc7 {[%clk 0:00:51.2]} 33... Rf8 {[%clk 0:00:18.9]} 34. Ke4 {[%clk 0:00:50.1]}
34... Nd5 {[%clk 0:00:19.3]} 35. Rb7 {[%clk 0:00:48.9]} 35... Nb4 {[%clk
0:00:13.7]} 36. Rxb6 {[%clk 0:00:46.5]} 36... Nd5 {[%clk 0:00:13.9]} 37. Rb7
{[%clk 0:00:46.7]} 37... f6 {[%clk 0:00:13.3]} 38. Ra7 {[%clk 0:00:30.5]} 38...
f5+ {[%clk 0:00:13.5]} 39. Kf3 {[%clk 0:00:30.1]} 39... Rb8 {[%clk 0:00:13.2]}
40. Rb7 {[%clk 0:00:28.3]} 40... Rxb7 {[%clk 0:00:11.9]} 41. Nxb7 {[%clk
0:00:28.5]} 41... Kh7 {[%clk 0:00:11.9]} 42. Nxa5 {[%clk 0:00:28.4]} 42... Kh6
{[%clk 0:00:10.3]} 43. Nc6 {[%clk 0:00:28.6]} 43... Kxh5 {[%clk 0:00:10.3]} 44.
a5 {[%clk 0:00:28.9]} 44... Nb4 {[%clk 0:00:10.2]} 45. Nxb4 {[%clk 0:00:28.2]}
1-0

[Event "Late-Titled-Tuesday-Blitz-February-13-2024"]
[Site "Chess.com"]
[Date "2024.02.13"]
[Round "8"]
[White "Baronessa08"]
[Black "LiamPutnam2008"]
[Result "0-1"]
[WhiteElo "2542"]
[BlackElo "2840"]
[TimeControl "180+1"]
[EndTime "15:28:13 PST"]
[Termination "LiamPutnam2008 won on time"]

1. Nf3 {[%clk 0:03:00.9]} 1... d5 {[%clk 0:02:55.6]} 2. d4 {[%clk 0:02:59.9]}
2... Nf6 {[%clk 0:02:55.5]} 3. c4 {[%clk 0:02:58.2]} 3... dxc4 {[%clk
0:02:55.2]} 4. e3 {[%clk 0:02:57.5]} 4... e6 {[%clk 0:02:55.4]} 5. Nc3 {[%clk
0:02:56.3]} 5... a6 {[%clk 0:02:55.4]} 6. Bxc4 {[%clk 0:02:53.5]} 6... b5 {[%clk
0:02:55.2]} 7. Be2 {[%clk 0:02:53.2]} 7... Bb7 {[%clk 0:02:55.7]} 8. O-O {[%clk
0:02:52.9]} 8... Nbd7 {[%clk 0:02:56.4]} 9. Bd2 {[%clk 0:02:42.7]} 9... c5
{[%clk 0:02:56]} 10. Rc1 {[%clk 0:02:40.7]} 10... Be7 {[%clk 0:02:55.7]} 11.
dxc5 {[%clk 0:02:38.7]} 11... Nxc5 {[%clk 0:02:55.9]} 12. Nb1 {[%clk 0:02:35.7]}
12... O-O {[%clk 0:02:47]} 13. Bc3 {[%clk 0:02:17.7]} 13... Qb6 {[%clk
0:02:45.5]} 14. Bd4 {[%clk 0:02:10.4]} 14... b4 {[%clk 0:02:30.8]} 15. Ne5
{[%clk 0:02:04.1]} 15... Rfd8 {[%clk 0:02:25.2]} 16. Bf3 {[%clk 0:01:49.9]}
16... Rac8 {[%clk 0:02:09.5]} 17. Bxb7 {[%clk 0:01:46.8]} 17... Qxb7 {[%clk
0:02:10.4]} 18. Qf3 {[%clk 0:01:33.7]} 18... Qb5 {[%clk 0:02:03.3]} 19. b3
{[%clk 0:01:04.8]} 19... h6 {[%clk 0:01:58.9]} 20. Rc4 {[%clk 0:01:03.4]} 20...
Nce4 {[%clk 0:01:41.9]} 21. Rfc1 {[%clk 0:00:57.5]} 21... Rxc4 {[%clk
0:01:39.6]} 22. Nxc4 {[%clk 0:00:51.5]} 22... Rc8 {[%clk 0:01:28.4]} 23. Rd1
{[%clk 0:00:47.8]} 23... Ng5 {[%clk 0:01:21.2]} 24. Qe2 {[%clk 0:00:45.8]} 24...
Nd5 {[%clk 0:01:19.5]} 25. h3 {[%clk 0:00:44]} 25... Ne4 {[%clk 0:01:18.8]} 26.
Qd3 {[%clk 0:00:38.4]} 26... Nc5 {[%clk 0:01:11.4]} 27. Bxc5 {[%clk 0:00:37.4]}
27... Qxc5 {[%clk 0:01:12.3]} 28. e4 {[%clk 0:00:28.6]} 28... Nf4 {[%clk
0:01:09.9]} 29. Qf3 {[%clk 0:00:28.1]} 29... Ng6 {[%clk 0:01:06.9]} 30. Nbd2
{[%clk 0:00:26.1]} 30... Rd8 {[%clk 0:01:04.7]} 31. Nf1 {[%clk 0:00:20]} 31...
Rd4 {[%clk 0:01:05]} 32. Rxd4 {[%clk 0:00:18.8]} 32... Qxd4 {[%clk 0:01:05.9]}
33. Qe3 {[%clk 0:00:17.9]} 33... Qa1 {[%clk 0:00:57.6]} 34. Qd2 {[%clk
0:00:17.1]} 34... Kh7 {[%clk 0:00:54.5]} 35. g3 {[%clk 0:00:17.2]} 35... Bc5
{[%clk 0:00:50.3]} 36. Kg2 {[%clk 0:00:17.1]} 36... Ne5 {[%clk 0:00:44.7]} 37.
Nxe5 {[%clk 0:00:16]} 37... Qxe5 {[%clk 0:00:45.6]} 38. Qe2 {[%clk 0:00:10.4]}
38... a5 {[%clk 0:00:45.5]} 39. h4 {[%clk 0:00:07.1]} 39... f5 {[%clk 0:00:43]}
40. Kf3 {[%clk 0:00:06.4]} 40... Qc3+ {[%clk 0:00:35.8]} 41. Kg2 {[%clk
0:00:05.9]} 41... Qe5 {[%clk 0:00:35.3]} 42. Kf3 {[%clk 0:00:06]} 42... g5
{[%clk 0:00:35.4]} 43. hxg5 {[%clk 0:00:05.9]} 43... hxg5 {[%clk 0:00:36.3]} 44.
exf5 {[%clk 0:00:04.1]} 44... g4+ {[%clk 0:00:36.1]} 0-1

[Event "Late-Titled-Tuesday-Blitz-February-13-2024"]
[Site "Chess.com"]
[Date "2024.02.13"]
[Round "8"]
[White "AndresDelgado77"]
[Black "andrzej"]
[Result "0-1"]
[WhiteElo "2338"]
[BlackElo "2516"]
[TimeControl "180+1"]
[EndTime "15:28:18 PST"]
[Termination "andrzej won on time"]

1. e4 {[%clk 0:03:00.8]} 1... e5 {[%clk 0:03:00.4]} 2. Nc3 {[%clk 0:03:00.2]}
2... Nf6 {[%clk 0:03:00]} 3. d4 {[%clk 0:02:58.7]} 3... exd4 {[%clk 0:02:54.3]}
4. Qxd4 {[%clk 0:02:58.9]} 4... Nc6 {[%clk 0:02:53.6]} 5. Qc4 {[%clk 0:02:59.1]}
5... Bb4 {[%clk 0:02:44.2]} 6. Bd2 {[%clk 0:02:59.3]} 6... O-O {[%clk
0:02:43.7]} 7. O-O-O {[%clk 0:02:59.5]} 7... Re8 {[%clk 0:02:39.2]} 8. f3 {[%clk
0:02:52]} 8... a5 {[%clk 0:02:38.4]} 9. Nge2 {[%clk 0:02:20.3]} 9... Ne5 {[%clk
0:02:38.1]} 10. Qd4 {[%clk 0:02:16.6]} 10... c6 {[%clk 0:02:23.1]} 11. Qf2
{[%clk 0:02:01.9]} 11... a4 {[%clk 0:02:18.9]} 12. a3 {[%clk 0:02:00]} 12... Bf8
{[%clk 0:02:18.7]} 13. Bg5 {[%clk 0:01:53.1]} 13... h6 {[%clk 0:02:09]} 14. Bh4
{[%clk 0:01:50.9]} 14... Ng6 {[%clk 0:02:09.1]} 15. Bg3 {[%clk 0:01:40.1]} 15...
b5 {[%clk 0:02:09.2]} 16. Na2 {[%clk 0:01:24.1]} 16... d6 {[%clk 0:01:48.9]} 17.
Nd4 {[%clk 0:01:19.3]} 17... Qb6 {[%clk 0:01:42.3]} 18. h4 {[%clk 0:01:06.1]}
18... Ne5 {[%clk 0:01:37.7]} 19. h5 {[%clk 0:00:43.2]} 19... Rb8 {[%clk
0:01:29.6]} 20. Nf5 {[%clk 0:00:37.2]} 20... Bxf5 {[%clk 0:01:25.6]} 21. exf5
{[%clk 0:00:36.3]} 21... c5 {[%clk 0:01:20.6]} 22. Bf4 {[%clk 0:00:22.1]} 22...
Nc4 {[%clk 0:01:10.6]} 23. Kb1 {[%clk 0:00:17.1]} 23... Rb7 {[%clk 0:01:04.3]}
24. Bxc4 {[%clk 0:00:15.8]} 24... bxc4 {[%clk 0:01:04.1]} 25. Bc1 {[%clk
0:00:16.2]} 25... d5 {[%clk 0:01:02.3]} 26. g4 {[%clk 0:00:14.7]} 26... d4
{[%clk 0:00:59.7]} 27. Qd2 {[%clk 0:00:10.3]} 27... Nd5 {[%clk 0:00:57.6]} 28.
c3 {[%clk 0:00:03.1]} 28... Qb3 {[%clk 0:00:50.1]} 29. Rhe1 {[%clk 0:00:02.4]}
29... Rxe1 {[%clk 0:00:41.1]} 30. Rxe1 {[%clk 0:00:02.2]} 30... dxc3 {[%clk
0:00:38.5]} 31. Qxd5 {[%clk 0:00:01.3]} 31... cxb2 {[%clk 0:00:37.3]} 32. Bd2
{[%clk 0:00:01.1]} 32... Qxa3 {[%clk 0:00:24.3]} 33. Bc3 {[%clk 0:00:01.3]}
33... Qb3 {[%clk 0:00:18.9]} 34. Re8 {[%clk 0:00:01.3]} 34... Qd1+ {[%clk
0:00:14.1]} 0-1

[Event "Late-Titled-Tuesday-Blitz-February-13-2024"]
[Site "Chess.com"]
[Date "2024.02.13"]
[Round "8"]
[White "Bryanl106"]
[Black "NikolaGry"]
[Result "1/2-1/2"]
[WhiteElo "2530"]
[BlackElo "2718"]
[TimeControl "180+1"]
[EndTime "15:28:21 PST"]
[Termination "Game drawn by agreement"]

1. e4 {[%clk 0:02:57.6]} 1... d5 {[%clk 0:02:59.8]} 2. exd5 {[%clk 0:02:57.8]}
2... Nf6 {[%clk 0:02:59.9]} 3. d4 {[%clk 0:02:57.1]} 3... Bg4 {[%clk 0:02:58.7]}
4. f3 {[%clk 0:02:57.6]} 4... Bf5 {[%clk 0:02:58.1]} 5. c4 {[%clk 0:02:51.7]}
5... e6 {[%clk 0:02:56.3]} 6. g4 {[%clk 0:02:49.5]} 6... Bxb1 {[%clk 0:02:52.9]}
7. Rxb1 {[%clk 0:02:42.1]} 7... exd5 {[%clk 0:02:52.9]} 8. g5 {[%clk 0:02:41.6]}
8... Nfd7 {[%clk 0:02:52.1]} 9. c5 {[%clk 0:02:36.5]} 9... Be7 {[%clk
0:02:48.9]} 10. h4 {[%clk 0:02:33.8]} 10... O-O {[%clk 0:02:46.2]} 11. Bd3
{[%clk 0:02:32.1]} 11... Re8 {[%clk 0:02:37.4]} 12. Ne2 {[%clk 0:02:30]} 12...
b6 {[%clk 0:02:34.6]} 13. Qc2 {[%clk 0:02:27.3]} 13... Nf8 {[%clk 0:02:01.7]}
14. b4 {[%clk 0:02:25]} 14... a5 {[%clk 0:02:00]} 15. a3 {[%clk 0:02:23.5]}
15... axb4 {[%clk 0:01:53.2]} 16. axb4 {[%clk 0:02:23.1]} 16... Kh8 {[%clk
0:01:39.4]} 17. Kf2 {[%clk 0:02:18.4]} 17... c6 {[%clk 0:01:26.7]} 18. Be3
{[%clk 0:02:09.5]} 18... Nbd7 {[%clk 0:01:22]} 19. Nf4 {[%clk 0:02:06.3]} 19...
bxc5 {[%clk 0:01:13.3]} 20. bxc5 {[%clk 0:02:04.7]} 20... Qc7 {[%clk 0:01:12.9]}
21. Rb2 {[%clk 0:01:47.4]} 21... Bxc5 {[%clk 0:01:07.2]} 22. dxc5 {[%clk
0:01:42.1]} 22... Rxe3 {[%clk 0:01:05.1]} 23. Kxe3 {[%clk 0:01:37.6]} 23... Qe5+
{[%clk 0:00:46.1]} 24. Be4 {[%clk 0:01:28]} 24... d4+ {[%clk 0:00:38.4]} 25. Kf2
{[%clk 0:01:24.6]} 25... Qxf4 {[%clk 0:00:38]} 26. Bxc6 {[%clk 0:01:23.7]} 26...
Ra3 {[%clk 0:00:33]} 27. Qe4 {[%clk 0:01:21.1]} 27... Qe3+ {[%clk 0:00:19.1]}
28. Qxe3 {[%clk 0:01:20.4]} 28... dxe3+ {[%clk 0:00:19]} 29. Ke2 {[%clk
0:01:20.6]} 29... Nxc5 {[%clk 0:00:19.1]} 30. Rd1 {[%clk 0:01:13.6]} 30... Nce6
{[%clk 0:00:17.1]} 31. Be4 {[%clk 0:01:03]} 31... Nf4+ {[%clk 0:00:15.7]} 32.
Ke1 {[%clk 0:01:02.4]} 32... Kg8 {[%clk 0:00:14.8]} 33. Rc1 {[%clk 0:00:49.7]}
33... g6 {[%clk 0:00:14.1]} 34. Rd1 {[%clk 0:00:48.9]} 34... Kg7 {[%clk
0:00:14]} 35. Bc6 {[%clk 0:00:45.7]} 35... N8e6 {[%clk 0:00:13.4]} 36. Bd5
{[%clk 0:00:42.7]} 36... Nd4 {[%clk 0:00:10.2]} 37. Rxd4 {[%clk 0:00:39.9]}
37... Ra1+ {[%clk 0:00:07.7]} 38. Rd1 {[%clk 0:00:38.7]} 38... Nd3+ {[%clk
0:00:05.8]} 39. Ke2 {[%clk 0:00:37.4]} 39... Rxd1 {[%clk 0:00:05.9]} 40. Kxd1
{[%clk 0:00:18.8]} 40... Nxb2+ {[%clk 0:00:05.1]} 41. Ke2 {[%clk 0:00:19.4]}
41... Na4 {[%clk 0:00:05.2]} 42. Kxe3 {[%clk 0:00:19.2]} 42... Nb6 {[%clk
0:00:05.2]} 43. Be4 {[%clk 0:00:18.9]} 1/2-1/2

[Event "Late-Titled-Tuesday-Blitz-February-13-2024"]
[Site "Chess.com"]
[Date "2024.02.13"]
[Round "8"]
[White "Attacker_2006"]
[Black "tarno17"]
[Result "1-0"]
[WhiteElo "2443"]
[BlackElo "2114"]
[TimeControl "180+1"]
[EndTime "15:28:21 PST"]
[Termination "Attacker_2006 won on time"]

1. e4 {[%clk 0:02:59.6]} 1... c5 {[%clk 0:03:00.3]} 2. Nf3 {[%clk 0:02:59.3]}
2... e6 {[%clk 0:03:00.8]} 3. d4 {[%clk 0:02:59.3]} 3... cxd4 {[%clk 0:03:01.5]}
4. Nxd4 {[%clk 0:02:59.9]} 4... a6 {[%clk 0:03:01.8]} 5. Nc3 {[%clk 0:02:57]}
5... Qc7 {[%clk 0:03:01.4]} 6. Be2 {[%clk 0:02:50.4]} 6... Nc6 {[%clk
0:02:57.5]} 7. Be3 {[%clk 0:02:49.4]} 7... Nf6 {[%clk 0:02:53.4]} 8. f3 {[%clk
0:02:42.5]} 8... Bb4 {[%clk 0:02:28.2]} 9. Qd2 {[%clk 0:02:37.3]} 9... O-O
{[%clk 0:02:21]} 10. a3 {[%clk 0:02:32.4]} 10... Be7 {[%clk 0:01:53.9]} 11. O-O
{[%clk 0:02:23]} 11... b5 {[%clk 0:01:53.8]} 12. Rad1 {[%clk 0:02:15.8]} 12...
Bb7 {[%clk 0:01:52.4]} 13. Nb3 {[%clk 0:02:05.6]} 13... Rfd8 {[%clk 0:01:47.4]}
14. Qe1 {[%clk 0:01:54.9]} 14... b4 {[%clk 0:01:36.6]} 15. Na4 {[%clk
0:01:49.6]} 15... Qe5 {[%clk 0:01:07.9]} 16. Nb6 {[%clk 0:01:42.3]} 16... Rab8
{[%clk 0:00:52.3]} 17. Nc4 {[%clk 0:01:42.9]} 17... Qh5 {[%clk 0:00:33.6]} 18.
f4 {[%clk 0:01:40.1]} 18... Ng4 {[%clk 0:00:27.2]} 19. Bxg4 {[%clk 0:01:35.4]}
19... Qxg4 {[%clk 0:00:26.9]} 20. h3 {[%clk 0:01:29.7]} 20... Qh4 {[%clk
0:00:24.2]} 21. Qxh4 {[%clk 0:01:24.8]} 21... Bxh4 {[%clk 0:00:24]} 22. Bb6
{[%clk 0:01:21.6]} 22... Rf8 {[%clk 0:00:09.7]} 23. Rxd7 {[%clk 0:01:15.4]}
23... bxa3 {[%clk 0:00:10.4]} 24. bxa3 {[%clk 0:00:56.9]} 24... a5 {[%clk
0:00:08.4]} 25. Nc5 {[%clk 0:00:44.7]} 25... Ba8 {[%clk 0:00:01.6]} 26. Bc7
{[%clk 0:00:27.9]} 26... Rbc8 {[%clk 0:00:01.8]} 27. Bd6 {[%clk 0:00:24.4]}
27... Rfd8 {[%clk 0:00:02.4]} 28. Nb6 {[%clk 0:00:20.6]} 28... Rxd7 {[%clk
0:00:02.5]} 29. Ncxd7 {[%clk 0:00:18.4]} 29... Nd4 {[%clk 0:00:02.4]} 30. Nxc8
{[%clk 0:00:16.2]} 30... Nxc2 {[%clk 0:00:02.7]} 31. Rc1 {[%clk 0:00:14.9]}
31... Bxe4 {[%clk 0:00:03.1]} 32. Nc5 {[%clk 0:00:12.9]} 32... Bg6 {[%clk
0:00:02.3]} 33. Ne7+ {[%clk 0:00:12.2]} 33... Kh8 {[%clk 0:00:01.1]} 34. Nxg6+
{[%clk 0:00:11.8]} 1-0